[Event "*** SCC Grand Prix: Titled Tuesday Blitz"]
[Site "Chess.com"]
[Date "2020.10.06"]
[Round "1"]
[White "amatatanav"]
[Black "Tooweak2slow03"]
[Result "0-1"]
[WhiteElo "2410"]
[BlackElo "2802"]
[TimeControl "180+1"]
[EndTime "10:06:30 PDT"]
[Termination "Tooweak2slow03 won on time"]

1. e4 {[%clk 0:03:00.9]} 1... e6 {[%clk 0:02:58.7]} 2. d4 {[%clk 0:03:00.4]}
2... d5 {[%clk 0:02:59.6]} 3. Nc3 {[%clk 0:03:00.9]} 3... h6 {[%clk 0:02:59.5]}
4. Nf3 {[%clk 0:02:52.7]} 4... Nf6 {[%clk 0:02:58]} 5. Bd3 {[%clk 0:01:45.3]}
5... Bb4 {[%clk 0:02:48]} 6. exd5 {[%clk 0:01:28.5]} 6... exd5 {[%clk
0:02:39.7]} 7. Qe2+ {[%clk 0:01:20.6]} 7... Be6 {[%clk 0:02:34.7]} 8. Bf5 {[%clk
0:00:41.5]} 8... O-O {[%clk 0:02:26.9]} 9. Bxe6 {[%clk 0:00:41.3]} 9... Re8
{[%clk 0:02:25.9]} 10. Bxf7+ {[%clk 0:00:32.7]} 10... Kxf7 {[%clk 0:02:25.6]}
11. Ne5+ {[%clk 0:00:32.8]} 11... Kg8 {[%clk 0:02:25.8]} 12. O-O {[%clk
0:00:27.2]} 12... Nc6 {[%clk 0:02:21.4]} 13. Nxc6 {[%clk 0:00:24.4]} 13... bxc6
{[%clk 0:02:21.2]} 14. Qf3 {[%clk 0:00:23.6]} 14... Rf8 {[%clk 0:02:18.7]} 15.
Qh3 {[%clk 0:00:21.5]} 15... Qd6 {[%clk 0:02:12.4]} 16. a3 {[%clk 0:00:20.6]}
16... Bxc3 {[%clk 0:02:12.2]} 17. Qxc3 {[%clk 0:00:21.4]} 17... Ne4 {[%clk
0:02:11.9]} 18. Qh3 {[%clk 0:00:19.6]} 18... Rf6 {[%clk 0:02:10.4]} 19. f3
{[%clk 0:00:12.2]} 19... Raf8 {[%clk 0:02:10.2]} 20. Be3 {[%clk 0:00:10.6]}
20... Ng5 {[%clk 0:02:04.6]} 21. Bxg5 {[%clk 0:00:10.4]} 21... hxg5 {[%clk
0:02:05.5]} 22. Qg3 {[%clk 0:00:11.1]} 22... Rf4 {[%clk 0:01:59.3]} 23. Qxg5
{[%clk 0:00:09.5]} 23... R8f5 {[%clk 0:01:37.1]} 24. Qg3 {[%clk 0:00:09]} 24...
Qf6 {[%clk 0:01:35.6]} 25. c3 {[%clk 0:00:08.7]} 25... c5 {[%clk 0:01:35.6]} 26.
Rfd1 {[%clk 0:00:07.9]} 26... cxd4 {[%clk 0:01:32.2]} 27. Rxd4 {[%clk
0:00:08.8]} 27... Rxd4 {[%clk 0:01:29.2]} 28. cxd4 {[%clk 0:00:09.5]} 28...
Qxd4+ {[%clk 0:01:30.1]} 29. Qf2 {[%clk 0:00:10]} 29... Qb6 {[%clk 0:01:28.5]}
30. Qxb6 {[%clk 0:00:09.3]} 30... axb6 {[%clk 0:01:29.4]} 31. b4 {[%clk
0:00:08.8]} 31... c5 {[%clk 0:01:27.5]} 32. Kf2 {[%clk 0:00:05.4]} 32... Re5
{[%clk 0:01:24.2]} 33. Re1 {[%clk 0:00:05.1]} 33... Rh5 {[%clk 0:01:20.9]} 34.
h3 {[%clk 0:00:04.8]} 34... Kf7 {[%clk 0:01:21]} 35. Re2 {[%clk 0:00:04.3]}
35... d4 {[%clk 0:01:18.9]} 36. f4 {[%clk 0:00:04.2]} 36... c4 {[%clk
0:01:17.3]} 37. Re5 {[%clk 0:00:03.1]} 37... Rxe5 {[%clk 0:01:15]} 38. fxe5
{[%clk 0:00:03]} 38... b5 {[%clk 0:01:15.9]} 39. h4 {[%clk 0:00:01.8]} 39... Ke6
{[%clk 0:01:14.5]} 40. g4 {[%clk 0:00:01.7]} 40... Kxe5 {[%clk 0:01:14.9]} 41.
Kf3 {[%clk 0:00:01.9]} 41... c3 {[%clk 0:01:14.8]} 0-1

[Event "*** SCC Grand Prix: Titled Tuesday Blitz"]
[Site "Chess.com"]
[Date "2020.10.06"]
[Round "1"]
[White "sofaceindisguise"]
[Black "AsaHoffmann"]
[Result "0-1"]
[WhiteElo "2626"]
[BlackElo "2339"]
[TimeControl "180+1"]
[EndTime "10:06:30 PDT"]
[Termination "AsaHoffmann won by resignation"]

1. d4 {[%clk 0:02:41.1]} 1... Nf6 {[%clk 0:02:57.5]} 2. Bg5 {[%clk 0:02:40.8]}
2... e6 {[%clk 0:02:56.6]} 3. Nc3 {[%clk 0:02:40.1]} 3... d6 {[%clk 0:02:54.6]}
4. e4 {[%clk 0:02:40.1]} 4... Be7 {[%clk 0:02:54.2]} 5. Bd3 {[%clk 0:02:39.2]}
5... c6 {[%clk 0:02:53.5]} 6. Qe2 {[%clk 0:02:38.6]} 6... e5 {[%clk 0:02:50.7]}
7. dxe5 {[%clk 0:02:37.3]} 7... dxe5 {[%clk 0:02:50.5]} 8. Nf3 {[%clk
0:02:36.1]} 8... Bg4 {[%clk 0:02:49.6]} 9. h3 {[%clk 0:02:30.2]} 9... Bxf3
{[%clk 0:02:49.2]} 10. Qxf3 {[%clk 0:02:31.1]} 10... Nbd7 {[%clk 0:02:48.6]} 11.
O-O-O {[%clk 0:02:31.1]} 11... Qa5 {[%clk 0:02:47.3]} 12. Kb1 {[%clk 0:02:30.7]}
12... b5 {[%clk 0:02:46.5]} 13. g4 {[%clk 0:02:18.9]} 13... Nc5 {[%clk
0:02:45.2]} 14. Qf5 {[%clk 0:02:13.6]} 14... Qc7 {[%clk 0:02:39.7]} 15. f4
{[%clk 0:02:13]} 15... g6 {[%clk 0:02:26.2]} 16. Qxe5 {[%clk 0:02:09.9]} 16...
Qxe5 {[%clk 0:02:23.8]} 17. fxe5 {[%clk 0:02:05.9]} 17... Nfd7 {[%clk
0:02:22.7]} 18. Bf4 {[%clk 0:01:56.1]} 18... Ne6 {[%clk 0:02:21.6]} 19. Bg3
{[%clk 0:01:55.5]} 19... Bf8 {[%clk 0:02:11.4]} 20. h4 {[%clk 0:01:50.5]} 20...
Bg7 {[%clk 0:02:10.3]} 21. Nxb5 {[%clk 0:01:46.7]} 21... cxb5 {[%clk 0:02:08.9]}
22. Bxb5 {[%clk 0:01:47.6]} 22... O-O-O {[%clk 0:02:04.3]} 23. Rd5 {[%clk
0:01:36.7]} 23... Nb6 {[%clk 0:02:01.1]} 24. Rf1 {[%clk 0:01:35]} 24... Nxd5
{[%clk 0:01:56.4]} 25. exd5 {[%clk 0:01:34.8]} 25... Rxd5 {[%clk 0:01:55.8]} 26.
Ba6+ {[%clk 0:01:33.5]} 26... Kc7 {[%clk 0:01:54]} 27. a3 {[%clk 0:01:33.1]}
27... Kb6 {[%clk 0:01:53.5]} 28. Bc4 {[%clk 0:01:32.5]} 28... Rd7 {[%clk
0:01:49.1]} 29. b4 {[%clk 0:01:31]} 29... Rc8 {[%clk 0:01:44.8]} 30. Bb3 {[%clk
0:01:30.4]} 30... Nd4 {[%clk 0:01:43]} 31. Rxf7 {[%clk 0:01:22.7]} 31... Rxf7
{[%clk 0:01:37.4]} 32. Bxf7 {[%clk 0:01:23.6]} 32... Nxc2 {[%clk 0:01:35.1]} 33.
e6 {[%clk 0:01:20.7]} 33... Bf8 {[%clk 0:01:33.2]} 34. Kb2 {[%clk 0:01:17.1]}
34... a5 {[%clk 0:01:25.1]} 35. Bf2+ {[%clk 0:01:13.8]} 35... Kb5 {[%clk
0:01:21.5]} 36. Bc5 {[%clk 0:01:12.6]} 36... Rxc5 {[%clk 0:00:46.9]} 37. bxc5
{[%clk 0:01:11.4]} 37... Nd4 {[%clk 0:00:45.7]} 38. g5 {[%clk 0:01:05.6]} 38...
Kxc5 {[%clk 0:00:44.8]} 39. Bg8 {[%clk 0:01:05]} 39... Nf5 {[%clk 0:00:42.9]}
40. Bxh7 {[%clk 0:01:04.9]} 40... Nxh4 {[%clk 0:00:42.7]} 41. Kb3 {[%clk
0:01:04.4]} 41... Be7 {[%clk 0:00:41.3]} 42. Ka4 {[%clk 0:01:04.3]} 42... Kb6
{[%clk 0:00:41.2]} 43. Bg8 {[%clk 0:01:04.1]} 43... Bxg5 {[%clk 0:00:40.2]} 44.
Bf7 {[%clk 0:01:01.8]} 44... Be7 {[%clk 0:00:39.9]} 45. Kb3 {[%clk 0:01:00.4]}
45... g5 {[%clk 0:00:39.6]} 46. Bh5 {[%clk 0:01:00.8]} 46... Nf5 {[%clk
0:00:38.2]} 47. a4 {[%clk 0:01:01.2]} 47... Nd4+ {[%clk 0:00:37.5]} 48. Kc4
{[%clk 0:01:01.4]} 48... Nxe6 {[%clk 0:00:36.8]} 49. Kd5 {[%clk 0:01:01.8]}
49... Nf4+ {[%clk 0:00:36.1]} 0-1

[Event "*** SCC Grand Prix: Titled Tuesday Blitz"]
[Site "Chess.com"]
[Date "2020.10.06"]
[Round "1"]
[White "TomiLen"]
[Black "pavelalexandru07"]
[Result "1-0"]
[WhiteElo "2559"]
[BlackElo "2238"]
[TimeControl "180+1"]
[EndTime "10:06:31 PDT"]
[Termination "TomiLen won by resignation"]

1. c4 {[%clk 0:02:56.3]} 1... c5 {[%clk 0:02:55.4]} 2. Nc3 {[%clk 0:02:54.4]}
2... g6 {[%clk 0:02:52.5]} 3. g3 {[%clk 0:02:53.6]} 3... Bg7 {[%clk 0:02:52.7]}
4. Bg2 {[%clk 0:02:54]} 4... Nc6 {[%clk 0:02:53.4]} 5. Nf3 {[%clk 0:02:53.7]}
5... e6 {[%clk 0:02:54]} 6. O-O {[%clk 0:02:50.9]} 6... Nge7 {[%clk 0:02:54.5]}
7. e3 {[%clk 0:02:49.3]} 7... d5 {[%clk 0:02:50.1]} 8. cxd5 {[%clk 0:02:48.9]}
8... exd5 {[%clk 0:02:48.9]} 9. d4 {[%clk 0:02:47.8]} 9... c4 {[%clk 0:02:47.3]}
10. b3 {[%clk 0:02:44.3]} 10... cxb3 {[%clk 0:02:45]} 11. Qxb3 {[%clk
0:02:43.3]} 11... O-O {[%clk 0:02:44.7]} 12. Ba3 {[%clk 0:02:41.9]} 12... Re8
{[%clk 0:02:40.2]} 13. Bxe7 {[%clk 0:02:26]} 13... Nxe7 {[%clk 0:02:38.9]} 14.
Rab1 {[%clk 0:02:25.2]} 14... b6 {[%clk 0:02:25]} 15. Rfc1 {[%clk 0:02:22.6]}
15... Bf5 {[%clk 0:02:06.1]} 16. Ra1 {[%clk 0:02:18]} 16... Rc8 {[%clk
0:02:01.8]} 17. a4 {[%clk 0:02:04.6]} 17... Be6 {[%clk 0:01:24.9]} 18. Ng5
{[%clk 0:02:01]} 18... h6 {[%clk 0:01:23.2]} 19. Nxe6 {[%clk 0:01:57.7]} 19...
fxe6 {[%clk 0:01:24.1]} 20. a5 {[%clk 0:01:48.6]} 20... bxa5 {[%clk 0:01:21.7]}
21. Na4 {[%clk 0:01:48.4]} 21... Qd6 {[%clk 0:01:09.6]} 22. Nc5 {[%clk
0:01:38.1]} 22... Nc6 {[%clk 0:01:07]} 23. Nxe6 {[%clk 0:01:14.7]} 23... Rxe6
{[%clk 0:00:43.9]} 24. Bxd5 {[%clk 0:01:12.1]} 24... Kf7 {[%clk 0:00:32.6]} 25.
Bxe6+ {[%clk 0:01:03.6]} 25... Qxe6 {[%clk 0:00:32.3]} 26. d5 {[%clk 0:01:03.8]}
26... Qd6 {[%clk 0:00:17.3]} 27. dxc6+ {[%clk 0:01:02.9]} 27... Kf8 {[%clk
0:00:16.8]} 28. Rxa5 {[%clk 0:00:59.2]} 28... Rxc6 {[%clk 0:00:16.6]} 29. Rd1
{[%clk 0:00:52.5]} 29... Qc7 {[%clk 0:00:14.2]} 30. Rad5 {[%clk 0:00:48.3]}
30... Rc1 {[%clk 0:00:12.2]} 31. Qa3+ {[%clk 0:00:44.3]} 31... Ke8 {[%clk
0:00:10.9]} 32. Qxc1 {[%clk 0:00:44.1]} 32... Qxc1 {[%clk 0:00:10.9]} 1-0

[Event "*** SCC Grand Prix: Titled Tuesday Blitz"]
[Site "Chess.com"]
[Date "2020.10.06"]
[Round "1"]
[White "FLamps8"]
[Black "WiktoriaPOL"]
[Result "1-0"]
[WhiteElo "2499"]
[BlackElo "2053"]
[TimeControl "180+1"]
[EndTime "10:06:31 PDT"]
[Termination "FLamps8 won on time"]

1. d4 {[%clk 0:02:59]} 1... Nf6 {[%clk 0:02:58.9]} 2. c4 {[%clk 0:02:58.4]} 2...
g6 {[%clk 0:02:58.9]} 3. Nc3 {[%clk 0:02:58.5]} 3... Bg7 {[%clk 0:02:58.6]} 4.
e4 {[%clk 0:02:59]} 4... d6 {[%clk 0:02:58]} 5. Bg5 {[%clk 0:02:59.2]} 5... O-O
{[%clk 0:02:57]} 6. Be2 {[%clk 0:02:59.7]} 6... c5 {[%clk 0:02:57.1]} 7. d5
{[%clk 0:02:57.1]} 7... e6 {[%clk 0:02:55.6]} 8. Qd2 {[%clk 0:02:56.2]} 8... Re8
{[%clk 0:02:30]} 9. h4 {[%clk 0:02:49]} 9... Qb6 {[%clk 0:02:16]} 10. f3 {[%clk
0:02:29.1]} 10... exd5 {[%clk 0:01:54.1]} 11. Bxf6 {[%clk 0:02:08.8]} 11... Bxf6
{[%clk 0:01:55]} 12. Nxd5 {[%clk 0:02:08.4]} 12... Qd8 {[%clk 0:01:54.5]} 13.
Nxf6+ {[%clk 0:02:07.5]} 13... Qxf6 {[%clk 0:01:55.2]} 14. h5 {[%clk 0:02:02.7]}
14... g5 {[%clk 0:01:53.9]} 15. O-O-O {[%clk 0:01:59.9]} 15... Rd8 {[%clk
0:01:48]} 16. h6 {[%clk 0:01:58.6]} 16... Nc6 {[%clk 0:01:37.2]} 17. Rh5 {[%clk
0:01:54.5]} 17... g4 {[%clk 0:01:34.8]} 18. fxg4 {[%clk 0:01:13]} 18... Nd4
{[%clk 0:01:32]} 19. Rf1 {[%clk 0:01:04.3]} 19... Nxe2+ {[%clk 0:01:27.7]} 20.
Qxe2 {[%clk 0:01:05.2]} 20... Qd4 {[%clk 0:00:58.5]} 21. Rd5 {[%clk 0:00:53.5]}
21... Qh8 {[%clk 0:00:51.2]} 22. Rg5+ {[%clk 0:00:53.1]} 22... Kf8 {[%clk
0:00:50.5]} 23. Rg7 {[%clk 0:00:53.7]} 23... Be6 {[%clk 0:00:16.7]} 24. Nh3
{[%clk 0:00:53.3]} 24... Rd7 {[%clk 0:00:13.3]} 25. Ng5 {[%clk 0:00:52.7]} 25...
Ke7 {[%clk 0:00:13.6]} 26. Nxe6 {[%clk 0:00:40.6]} 26... Kxe6 {[%clk 0:00:13.3]}
27. Qf3 {[%clk 0:00:40.8]} 1-0

[Event "*** SCC Grand Prix: Titled Tuesday Blitz"]
[Site "Chess.com"]
[Date "2020.10.06"]
[Round "1"]
[White "QuintilianoR"]
[Black "norwaytoadog"]
[Result "1-0"]
[WhiteElo "2589"]
[BlackElo "2286"]
[TimeControl "180+1"]
[EndTime "10:06:33 PDT"]
[Termination "QuintilianoR won on time"]

1. e4 {[%clk 0:03:00.9]} 1... c5 {[%clk 0:02:59]} 2. Nf3 {[%clk 0:03:00.8]} 2...
d6 {[%clk 0:02:58.9]} 3. d4 {[%clk 0:03:00]} 3... cxd4 {[%clk 0:02:58.8]} 4.
Nxd4 {[%clk 0:03:00.9]} 4... Nf6 {[%clk 0:02:59.2]} 5. Nc3 {[%clk 0:03:01]} 5...
a6 {[%clk 0:02:59.3]} 6. h3 {[%clk 0:03:00.5]} 6... e5 {[%clk 0:02:58]} 7. Nb3
{[%clk 0:02:59.4]} 7... Be7 {[%clk 0:02:56.2]} 8. f4 {[%clk 0:02:57.7]} 8...
exf4 {[%clk 0:02:48.7]} 9. Bxf4 {[%clk 0:02:57.3]} 9... Be6 {[%clk 0:02:48.5]}
10. Qe2 {[%clk 0:02:55.8]} 10... Nc6 {[%clk 0:02:41.3]} 11. O-O-O {[%clk
0:02:55.4]} 11... Qc7 {[%clk 0:02:07.2]} 12. Kb1 {[%clk 0:02:52.1]} 12... Ne5
{[%clk 0:01:57.5]} 13. g4 {[%clk 0:02:51]} 13... h6 {[%clk 0:01:52.8]} 14. Qe3
{[%clk 0:02:41.7]} 14... Rc8 {[%clk 0:01:43.3]} 15. Nd4 {[%clk 0:02:39.6]} 15...
b5 {[%clk 0:01:31.4]} 16. a3 {[%clk 0:02:28.9]} 16... Qb7 {[%clk 0:01:20.6]} 17.
Nf5 {[%clk 0:01:38.6]} 17... Bxf5 {[%clk 0:01:18]} 18. gxf5 {[%clk 0:01:37.9]}
18... Rxc3 {[%clk 0:00:51.2]} 19. Qxc3 {[%clk 0:01:29.3]} 19... Nxe4 {[%clk
0:00:43.8]} 20. Qe1 {[%clk 0:01:28.3]} 20... O-O {[%clk 0:00:35.5]} 21. Bg2
{[%clk 0:01:15.4]} 21... Nc3+ {[%clk 0:00:29.4]} 22. Qxc3 {[%clk 0:01:14.5]}
22... Qxg2 {[%clk 0:00:29.4]} 23. Rhg1 {[%clk 0:01:12.4]} 23... Qe4 {[%clk
0:00:22.7]} 24. Qg3 {[%clk 0:01:11.3]} 24... g5 {[%clk 0:00:11.8]} 25. fxg6
{[%clk 0:01:00.8]} 25... Nxg6 {[%clk 0:00:11.4]} 26. Rde1 {[%clk 0:00:58.7]}
26... Qb7 {[%clk 0:00:05.2]} 27. Rxe7 {[%clk 0:00:56.4]} 27... Qxe7 {[%clk
0:00:04.4]} 28. Bxd6 {[%clk 0:00:56.9]} 28... Qe4 {[%clk 0:00:02]} 29. Bxf8
{[%clk 0:00:57.2]} 29... Kxf8 {[%clk 0:00:02.4]} 30. Qd6+ {[%clk 0:00:55.7]}
30... Kg7 {[%clk 0:00:02.4]} 31. Qxa6 {[%clk 0:00:54.8]} 31... Kh7 {[%clk
0:00:01.4]} 32. Qf6 {[%clk 0:00:53.1]} 1-0

[Event "*** SCC Grand Prix: Titled Tuesday Blitz"]
[Site "Chess.com"]
[Date "2020.10.06"]
[Round "1"]
[White "rasmussvane"]
[Black "Kaua18"]
[Result "1-0"]
[WhiteElo "2914"]
[BlackElo "2458"]
[TimeControl "180+1"]
[EndTime "10:06:34 PDT"]
[Termination "rasmussvane won on time"]

1. Nf3 {[%clk 0:03:00.9]} 1... c5 {[%clk 0:02:59.2]} 2. g3 {[%clk 0:03:00.9]}
2... Nc6 {[%clk 0:02:59.5]} 3. c4 {[%clk 0:03:00.6]} 3... g6 {[%clk 0:02:59.8]}
4. Bg2 {[%clk 0:02:59.1]} 4... Bg7 {[%clk 0:02:59.9]} 5. O-O {[%clk 0:02:59.6]}
5... e5 {[%clk 0:02:59.9]} 6. Nc3 {[%clk 0:02:59.3]} 6... d6 {[%clk 0:03:00.1]}
7. d3 {[%clk 0:02:59.7]} 7... Nge7 {[%clk 0:02:59.8]} 8. Bg5 {[%clk 0:02:59.9]}
8... f6 {[%clk 0:02:58.3]} 9. Bd2 {[%clk 0:02:58]} 9... O-O {[%clk 0:02:58.6]}
10. a3 {[%clk 0:02:58]} 10... Be6 {[%clk 0:02:58.2]} 11. Rb1 {[%clk 0:02:56.4]}
11... a5 {[%clk 0:02:57.7]} 12. Ne1 {[%clk 0:02:50.2]} 12... d5 {[%clk 0:02:53]}
13. cxd5 {[%clk 0:02:51.1]} 13... Nxd5 {[%clk 0:02:53.9]} 14. Nc2 {[%clk
0:02:52]} 14... f5 {[%clk 0:02:49.7]} 15. Ne3 {[%clk 0:02:50.7]} 15... Nde7
{[%clk 0:02:49.8]} 16. Nc4 {[%clk 0:02:43.9]} 16... Qc7 {[%clk 0:02:48.2]} 17.
Nb5 {[%clk 0:02:32.4]} 17... Qd8 {[%clk 0:02:23.5]} 18. b4 {[%clk 0:02:17.3]}
18... cxb4 {[%clk 0:02:17.6]} 19. axb4 {[%clk 0:02:18.2]} 19... axb4 {[%clk
0:02:07.4]} 20. Bxb4 {[%clk 0:02:17.1]} 20... Nxb4 {[%clk 0:02:07.7]} 21. Rxb4
{[%clk 0:02:17.1]} 21... Nc6 {[%clk 0:02:08.1]} 22. Rb1 {[%clk 0:02:14.6]} 22...
e4 {[%clk 0:01:41.9]} 23. Nbd6 {[%clk 0:02:02.8]} 23... Bxc4 {[%clk 0:01:38.6]}
24. dxc4 {[%clk 0:01:56.6]} 24... Ra2 {[%clk 0:01:18.6]} 25. Qd5+ {[%clk
0:01:47.8]} 25... Kh8 {[%clk 0:01:13.9]} 26. Rxb7 {[%clk 0:01:47.5]} 26... Ne5
{[%clk 0:00:40.5]} 27. c5 {[%clk 0:01:17]} 27... Ra5 {[%clk 0:00:25.1]} 28. Rxg7
{[%clk 0:01:13.8]} 28... Kxg7 {[%clk 0:00:25.1]} 29. Qxe5+ {[%clk 0:01:13.1]}
29... Kh6 {[%clk 0:00:09]} 30. Nb7 {[%clk 0:01:10.9]} 30... Qa8 {[%clk
0:00:04.6]} 31. Nxa5 {[%clk 0:01:09.8]} 31... Qxa5 {[%clk 0:00:05.5]} 32. Qe7
{[%clk 0:01:07.5]} 32... Rc8 {[%clk 0:00:05.1]} 33. Rd1 {[%clk 0:01:03.7]} 33...
Qxc5 {[%clk 0:00:04.4]} 34. Qh4+ {[%clk 0:01:02.6]} 34... Kg7 {[%clk 0:00:01.2]}
35. Rd7+ {[%clk 0:01:03.5]} 35... Kf8 {[%clk 0:00:01.4]} 36. Qf6+ {[%clk
0:01:02.7]} 1-0

[Event "*** SCC Grand Prix: Titled Tuesday Blitz"]
[Site "Chess.com"]
[Date "2020.10.06"]
[Round "1"]
[White "Forantes"]
[Black "tigra"]
[Result "0-1"]
[WhiteElo "2424"]
[BlackElo "2820"]
[TimeControl "180+1"]
[EndTime "10:06:34 PDT"]
[Termination "tigra won by resignation"]

1. Nf3 {[%clk 0:03:00.9]} 1... c5 {[%clk 0:02:50.5]} 2. g3 {[%clk 0:03:01.3]}
2... Nf6 {[%clk 0:02:43.8]} 3. Bg2 {[%clk 0:03:01.5]} 3... d5 {[%clk 0:02:40.2]}
4. O-O {[%clk 0:03:02]} 4... h6 {[%clk 0:02:40.7]} 5. d4 {[%clk 0:03:02.5]} 5...
cxd4 {[%clk 0:02:40.8]} 6. Nxd4 {[%clk 0:03:02.3]} 6... e5 {[%clk 0:02:41.1]} 7.
Nb3 {[%clk 0:03:01]} 7... Be6 {[%clk 0:02:40.9]} 8. Nc3 {[%clk 0:02:57.5]} 8...
Nc6 {[%clk 0:02:27.7]} 9. Re1 {[%clk 0:02:57]} 9... Bb4 {[%clk 0:02:24.3]} 10.
Bd2 {[%clk 0:02:53.2]} 10... O-O {[%clk 0:02:24.1]} 11. e4 {[%clk 0:02:47.3]}
11... d4 {[%clk 0:02:12.9]} 12. Ne2 {[%clk 0:02:45.9]} 12... a5 {[%clk 0:02:03]}
13. Bxb4 {[%clk 0:02:31.2]} 13... axb4 {[%clk 0:02:02.9]} 14. Nec1 {[%clk
0:02:27.2]} 14... Qb6 {[%clk 0:02:00.2]} 15. Nd3 {[%clk 0:02:25.4]} 15... Nd7
{[%clk 0:01:59.1]} 16. Qd2 {[%clk 0:02:18.6]} 16... Ra6 {[%clk 0:01:53.8]} 17.
f4 {[%clk 0:01:14.2]} 17... Rfa8 {[%clk 0:01:52.9]} 18. f5 {[%clk 0:01:09.1]}
18... Bxb3 {[%clk 0:01:52.3]} 19. cxb3 {[%clk 0:01:10]} 19... Rxa2 {[%clk
0:01:51.3]} 20. Rac1 {[%clk 0:01:10.6]} 20... Na5 {[%clk 0:01:25.6]} 21. Qd1
{[%clk 0:01:03.2]} 21... Qd6 {[%clk 0:01:21.9]} 22. g4 {[%clk 0:00:52.5]} 22...
b6 {[%clk 0:01:21.3]} 23. h4 {[%clk 0:00:21.6]} 23... Nc5 {[%clk 0:01:21.1]} 24.
Nxc5 {[%clk 0:00:19.2]} 24... bxc5 {[%clk 0:01:22]} 25. g5 {[%clk 0:00:17.4]}
25... Rxb2 {[%clk 0:01:20.6]} 26. f6 {[%clk 0:00:15.3]} 26... Nxb3 {[%clk
0:01:18.8]} 27. Qg4 {[%clk 0:00:10.3]} 27... Nxc1 {[%clk 0:01:12]} 28. fxg7
{[%clk 0:00:06.8]} 28... Qg6 {[%clk 0:01:04.3]} 29. Rf1 {[%clk 0:00:05.2]} 29...
Ne2+ {[%clk 0:01:03.3]} 30. Kh1 {[%clk 0:00:03.5]} 30... Nf4 {[%clk 0:01:02.9]}
31. Rxf4 {[%clk 0:00:03.6]} 31... exf4 {[%clk 0:01:03.1]} 32. e5 {[%clk
0:00:04.2]} 32... Ra1+ {[%clk 0:01:01.3]} 33. Kh2 {[%clk 0:00:04.7]} 33... Raa2
{[%clk 0:00:59.2]} 34. Qc8+ {[%clk 0:00:02.1]} 34... Kxg7 {[%clk 0:00:59]} 0-1

[Event "*** SCC Grand Prix: Titled Tuesday Blitz"]
[Site "Chess.com"]
[Date "2020.10.06"]
[Round "1"]
[White "Borsuk_Konstantin"]
[Black "natelleka"]
[Result "1-0"]
[WhiteElo "2552"]
[BlackElo "2224"]
[TimeControl "180+1"]
[EndTime "10:06:34 PDT"]
[Termination "Borsuk_Konstantin won on time"]

1. d4 {[%clk 0:03:00.4]} 1... d5 {[%clk 0:02:58]} 2. c4 {[%clk 0:03:00.1]} 2...
c5 {[%clk 0:02:57.8]} 3. cxd5 {[%clk 0:02:58.6]} 3... Qxd5 {[%clk 0:02:57.4]} 4.
Nf3 {[%clk 0:02:57.4]} 4... cxd4 {[%clk 0:02:57.7]} 5. Nc3 {[%clk 0:02:57]} 5...
Qa5 {[%clk 0:02:57]} 6. Nxd4 {[%clk 0:02:50.5]} 6... Nf6 {[%clk 0:02:56.6]} 7.
g3 {[%clk 0:02:45.1]} 7... e5 {[%clk 0:02:55.3]} 8. Nb3 {[%clk 0:02:44.9]} 8...
Qc7 {[%clk 0:02:55.8]} 9. Bg2 {[%clk 0:02:42.6]} 9... Bb4 {[%clk 0:02:55.4]} 10.
O-O {[%clk 0:02:42.5]} 10... Bxc3 {[%clk 0:02:54.6]} 11. bxc3 {[%clk 0:02:42.1]}
11... O-O {[%clk 0:02:54.7]} 12. Bg5 {[%clk 0:02:38.1]} 12... Nc6 {[%clk
0:02:48.4]} 13. Bxf6 {[%clk 0:02:33.3]} 13... gxf6 {[%clk 0:02:47.5]} 14. Qd2
{[%clk 0:02:19]} 14... Kg7 {[%clk 0:02:46]} 15. Rab1 {[%clk 0:02:02.6]} 15...
Bf5 {[%clk 0:02:40.9]} 16. e4 {[%clk 0:02:02.3]} 16... Rad8 {[%clk 0:02:35.1]}
17. Qe3 {[%clk 0:01:59.1]} 17... Bc8 {[%clk 0:02:19.3]} 18. f4 {[%clk
0:01:52.6]} 18... Qb6 {[%clk 0:02:14.4]} 19. Nc5 {[%clk 0:01:52.1]} 19... Qc7
{[%clk 0:02:04.7]} 20. Nb3 {[%clk 0:01:37.1]} 20... Qb6 {[%clk 0:02:02.7]} 21.
Qxb6 {[%clk 0:01:31.7]} 21... axb6 {[%clk 0:02:01.5]} 22. Rfd1 {[%clk
0:01:31.3]} 22... Bg4 {[%clk 0:01:48.8]} 23. Rd2 {[%clk 0:01:06.4]} 23... Be6
{[%clk 0:00:50.6]} 24. Rbd1 {[%clk 0:00:57.7]} 24... Rxd2 {[%clk 0:00:42.4]} 25.
Rxd2 {[%clk 0:00:57.5]} 25... Rd8 {[%clk 0:00:31.9]} 26. Rxd8 {[%clk 0:00:55.5]}
26... Nxd8 {[%clk 0:00:30.7]} 27. Kf2 {[%clk 0:00:56.4]} 27... Kf8 {[%clk
0:00:22.7]} 28. Bf1 {[%clk 0:00:55.1]} 28... Ke7 {[%clk 0:00:19.7]} 29. f5
{[%clk 0:00:53.3]} 29... Bd7 {[%clk 0:00:16.4]} 30. Kf3 {[%clk 0:00:51.6]} 30...
Kd6 {[%clk 0:00:14]} 31. Kg4 {[%clk 0:00:51.5]} 31... Nc6 {[%clk 0:00:12.8]} 32.
Kh5 {[%clk 0:00:51.5]} 32... Na5 {[%clk 0:00:08.8]} 33. Nd2 {[%clk 0:00:50.9]}
1-0